fUSD/lending_fUSD_20240521
["ID","MTS","AMOUNT","RATE_DAILY","PERIOD"]
[327612653,1716252659016,-500.0,0.0003863,6]
[327612654,1716252659028,-1392.15,0.0003863,6]
[327612655,1716252659040,-1864.97,0.0003863,6]
[327612656,1716252659061,-500.0,0.0003863,6]
[327612657,1716252659073,-500.0,0.0003863,6]
[327612658,1716252659084,-500.0,0.0003863,6]
[327612659,1716252659096,-500.0,0.0003863,6]
[327612660,1716252659107,-500.0,0.0003863,6]
[327612661,1716252659118,-500.0,0.0003863,6]
[327612662,1716252659129,-500.0,0.0003863,6]
[327612663,1716252659141,-500.0,0.0003863,6]
[327612664,1716252659154,-1430.51,0.0003863,6]
[327612665,1716252659164,-500.0,0.0003863,6]
[327612666,1716252659176,-1057.55,0.0003863,6]
[327612667,1716252659187,-2247.59,0.0003863,6]
[327612668,1716252659199,-1564.02,0.0003863,6]
[327612669,1716252659210,-1572.88,0.0003863,6]
[327612670,1716252659221,-2828.54,0.0003863,6]
[327612671,1716252659233,-500.0,0.0003863,6]
[327612672,1716252659245,-1495.96,0.0003863,6]
[327612673,1716252659256,-500.0,0.0003863,6]
[327612674,1716252659270,-1243.65,0.0003863,6]
[327612675,1716252659282,-818.8,0.0003863,6]
[327612676,1716252659302,-500.0,0.0003863,6]
[327612677,1716252659321,-1850.95,0.0003863,6]
[327612678,1716252659333,-500.0,0.0003863,6]
[327612679,1716252659345,-744.44,0.0003863,6]
[327612680,1716252659360,-1139.63,0.0003863,6]
[327612681,1716252659372,-500.0,0.0003863,6]
[327612682,1716252659386,-883.28,0.0003863,6]
[327612683,1716252659397,-4524.45,0.0003863,6]
[327612684,1716252659410,-500.0,0.0003863,6]
[327612685,1716252659422,-6333.73,0.0003863,6]
[327612686,1716252659434,-1360.87,0.0003863,6]
[327612687,1716252659445,-500.0,0.0003863,6]
[327612688,1716252659456,-500.0,0.0003863,6]
[327612689,1716252659468,-685.26,0.0003863,6]
[327612690,1716252659480,-7441.53,0.0003863,6]
[327612691,1716252659491,-500.0,0.0003863,6]
[327612692,1716252659503,-1040.61,0.0003863,6]
[327612693,1716252659515,-1193.08,0.0003863,6]
[327612694,1716252659527,-2556.77,0.0003863,6]
[327612695,1716252659540,-500.0,0.0003863,6]
[327612696,1716252659552,-500.0,0.0003863,6]
[327612697,1716252659564,-500.0,0.0003863,6]
[327612698,1716252659576,-4754.9,0.0003863,6]
[327612699,1716252659587,-33008.64,0.0003863,6]
[327612700,1716252659598,-500.0,0.0003863,6]
[327612701,1716252659609,-1207.95,0.0003863,6]
[327612702,1716252659621,-1090.3,0.0003863,6]
[327612703,1716252659633,-637.99,0.0003863,6]
[327612704,1716252659644,-4287.64,0.0003863,6]
[327612705,1716252659659,-785.43,0.0003863,6]
[327612706,1716252659670,-1632.44,0.0003863,6]
[327612707,1716252659682,-863.64,0.0003863,6]
[327612708,1716252659694,-2537.53,0.0003863,6]
[327612709,1716252659705,-770.47,0.0003863,6]
[327612710,1716252659717,-500.0,0.0003863,6]
[327612711,1716252659728,-2444.33,0.0003863,6]
[327612712,1716252659740,-500.0,0.0003863,6]
[327612713,1716252659751,-500.0,0.0003863,6]
[327612714,1716252659763,-273.540673,0.0003863,14]
[327612715,1716252659774,-1818.2,0.0003863,6]
[327612716,1716252659786,-500.0,0.0003863,6]
[327612717,1716252659797,-1705.62,0.0003863,6]
[327612718,1716252659809,-3216.85,0.0003863,6]
[327612719,1716252659822,-10497.11,0.0003863,6]
[327612720,1716252659833,-1596.03,0.0003863,6]
[327612721,1716252659846,-723.68,0.0003863,6]
[327612722,1716252659858,-2477.96,0.0003863,6]
[327612723,1716252659870,-1124.92,0.0003863,6]
[327612724,1716252659882,-151.0,0.0003863,14]
[327612725,1716252659894,-150.0,0.0003863,6]
[327612726,1716252659907,-3590.21,0.0003863,6]
[327612727,1716252659918,-500.0,0.0003863,6]
[327612728,1716252659930,-904.69,0.0003863,6]
[327612729,1716252659941,-500.0,0.0003863,6]
[327612730,1716252659953,-500.0,0.0003863,6]
[327612731,1716252659964,-500.0,0.0003863,6]
[327612732,1716252659976,-1597.68,0.0003863,6]
[327612733,1716252659987,-526.7,0.0003863,6]
[327612734,1716252659999,-4455.36,0.0003863,6]
[327612735,1716252660011,-5241.54,0.0003863,6]
[327612736,1716252660023,-1774.57,0.0003863,6]
[327612737,1716252660035,-547.52,0.0003863,6]
[327612738,1716252660046,-932.22,0.0003863,6]
[327612739,1716252660057,-741.06,0.0003863,6]
[327612740,1716252660067,-500.0,0.0003863,6]
[327612741,1716252660077,-500.0,0.0003863,6]
[327612742,1716252660087,-500.0,0.0003863,6]
[327612743,1716252660097,-1145.91,0.0003863,6]
[327612744,1716252660107,-563.87,0.0003863,6]
[327612745,1716252660117,-7517.87,0.0003863,6]
[327612746,1716252660127,-500.0,0.0003863,6]
[327612747,1716252660546,-500.0,0.0003863,6]
[327612748,1716252660574,-837.21,0.0003863,6]
[327612749,1716252660601,-500.0,0.0003863,6]
[327612750,1716252660620,-2328.38,0.0003863,6]
[327612751,1716252660630,-1924.56,0.0003863,6]
[327612752,1716252660639,-1569.49,0.0003863,6]
[327612753,1716252660649,-500.0,0.0003863,6]
[327612754,1716252660661,-1758.06,0.0003863,6]
[327612755,1716252660670,-1454.4,0.0003863,6]
[327612756,1716252660679,-2823.5,0.0003863,6]
[327612757,1716252660688,-500.0,0.0003863,6]
[327612758,1716252660697,-500.0,0.0003863,6]
[327612759,1716252660706,-1172.91,0.0003863,6]
[327612760,1716252660715,-2115.45,0.0003863,6]
[327612761,1716252660724,-500.0,0.0003863,6]
[327612762,1716252660733,-500.0,0.0003863,6]
[327612763,1716252660743,-500.0,0.0003863,6]
[327612764,1716252660752,-500.5,0.0003863,6]
[327612765,1716252660762,-742.24,0.0003863,6]
[327612766,1716252660771,-686.81,0.0003863,6]
[327612767,1716252660780,-19525.58,0.0003863,6]
[327612768,1716252660790,-2054.73,0.0003863,6]
[327612769,1716252660800,-151.0,0.0003863,14]
[327612770,1716252660810,-500.0,0.0003863,6]
[327612771,1716252660819,-3561.4,0.0003863,6]
[327612772,1716252660828,-18257.53,0.0003863,6]
[327612773,1716252660837,-500.0,0.0003863,6]
[327612774,1716252660846,-991.0,0.0003863,6]
[327612775,1716252660857,-1076.3,0.0003863,6]
[327612776,1716252660866,-3257.37,0.0003863,6]
[327612777,1716252660876,-1929.7,0.0003863,6]
[327612778,1716252660886,-1392.29,0.0003863,6]
[327612779,1716252660895,-1233.23,0.0003863,6]
[327612780,1716252660906,-1293.14,0.0003863,6]
[327612781,1716252660915,-500.0,0.0003863,6]
[327612782,1716252660924,-1394.59,0.0003863,6]
[327612783,1716252660933,-500.0,0.0003863,6]
[327612784,1716252660942,-1694.01,0.0003863,6]
[327612785,1716252660952,-1176.41,0.0003863,6]
[327612786,1716252660961,-500.0,0.0003863,6]
[327612787,1716252660971,-698.21,0.0003863,6]
[327612788,1716252660981,-500.0,0.0003863,6]
[327612789,1716252660993,-1753.99,0.0003863,6]
[327612790,1716252661003,-807.32,0.0003863,6]
[327612791,1716252661013,-12456.84,0.0003863,6]
[327612792,1716252661022,-500.0,0.0003863,6]
[327612793,1716252661031,-1751.13,0.0003863,6]
[327612794,1716252661041,-1672.14,0.0003863,6]
[327612795,1716252661050,-2265.79,0.0003863,6]
[327612796,1716252661060,-1916.5,0.0003863,6]
[327612797,1716252661070,-760.26,0.0003863,6]
[327612798,1716252661080,-500.0,0.0003863,6]
[327612799,1716252661089,-500.0,0.0003863,6]
[327612800,1716252661098,-151.0,0.0003863,14]
[327612801,1716252661108,-754.62,0.0003863,6]
[327612802,1716252661118,-500.0,0.0003863,6]
[327612803,1716252661127,-500.0,0.0003863,6]
[327612804,1716252661136,-1782.34,0.0003863,6]
[327612805,1716252661146,-500.0,0.0003863,6]
[327612806,1716252661156,-2518.22,0.0003863,6]
[327612807,1716252661165,-500.0,0.0003863,6]
[327612808,1716252661174,-500.0,0.0003863,6]
[327612809,1716252661183,-151.0,0.0003863,14]
[327612810,1716252661193,-641.02,0.0003863,6]
[327612811,1716252661202,-2838.35,0.0003863,6]
[327612812,1716252661211,-500.0,0.0003863,6]
[327612813,1716252661220,-786.73,0.0003863,6]
[327612814,1716252661229,-9150.84,0.0003863,6]
[327612815,1716252661238,-1581.98,0.0003863,6]
[327612816,1716252661247,-2900.1,0.0003863,6]
[327612817,1716252661256,-1433.43,0.0003863,6]
[327612818,1716252661266,-2097.36,0.0003863,6]
[327612819,1716252661275,-565.60466707,0.0003863,6]
[327612820,1716252661284,-500.0,0.0003863,6]
[327612821,1716252661293,-1107.19,0.0003863,6]
[327612822,1716252661303,-1184.1,0.0003863,6]
[327612823,1716252661317,-790.25,0.0003863,6]
[327612824,1716252661327,-1849.84,0.0003863,6]
[327612825,1716252661336,-1249.4,0.0003863,6]
[327612826,1716252661346,-508.24,0.0003863,6]
[327612827,1716252661355,-500.0,0.0003863,6]
[327612828,1716252661365,-1350.34,0.0003863,6]
[327612829,1716252661375,-953.69,0.0003863,6]
[327612830,1716252661386,-2238.96,0.0003863,6]
[327612831,1716252661396,-1409.84,0.0003863,6]
[327612832,1716252661406,-1307.48,0.0003863,6]
[327612833,1716252661416,-581.45,0.0003863,6]
[327612834,1716252661425,-500.0,0.0003863,6]
[327612835,1716252661435,-3019.67,0.0003863,6]
[327612836,1716252661444,-1092.61,0.0003863,6]
[327612837,1716252661454,-4180.68,0.0003863,6]
[327612838,1716252661465,-870.92,0.0003863,6]
[327612839,1716252661474,-1439.55,0.0003863,6]
[327612840,1716252661484,-500.0,0.0003863,6]
[327612841,1716252661494,-500.0,0.0003863,6]
[327612842,1716252661503,-500.0,0.0003863,6]
[327612843,1716252661514,-500.0,0.0003863,6]
[327612844,1716252661524,-8354.4,0.0003863,6]
[327612845,1716252661535,-1249.94,0.0003863,6]
[327612846,1716252661545,-500.0,0.0003863,6]
[327612847,1716252661555,-183.379893,0.0003863,14]
[327612848,1716252661564,-510.97914918,0.0003863,6]
[327612849,1716252661573,-500.0,0.0003863,6]
[327612850,1716252661583,-6844.64,0.0003863,6]
[327612851,1716252661594,-10848.53,0.0003863,6]
[327612852,1716252661603,-2971.31,0.0003863,6]
[327612853,1716252661612,-500.0,0.0003863,6]
[327612854,1716252661621,-1068.63,0.0003863,6]
[327612855,1716252661630,-3066.28,0.0003863,6]
[327612856,1716252661640,-1052.49,0.0003863,6]
[327612857,1716252661649,-3155.39,0.0003863,6]
[327612858,1716252661661,-3906.52,0.0003863,6]
[327612859,1716252661670,-1879.71,0.0003863,6]
[327612860,1716252661679,-564.16,0.0003863,6]
[327612861,1716252661688,-1104.06,0.0003863,6]
[327612862,1716252661698,-2076.65,0.0003863,6]
[327612863,1716252661708,-2052.1,0.0003863,6]
[327612864,1716252661717,-1427.12,0.0003863,6]
[327612865,1716252661727,-1616.4,0.0003863,6]
[327612866,1716252661738,-1435.88,0.0003863,6]
[327612867,1716252661747,-5429.06,0.0003863,6]
[327612868,1716252661758,-521.04,0.0003863,6]
[327612869,1716252661767,-1107.17,0.0003863,6]
[327612870,1716252661777,-1835.58,0.0003863,6]
[327612871,1716252661787,-7435.54,0.0003863,6]
[327612872,1716252661796,-1223.4,0.0003863,6]
[327612873,1716252661806,-500.0,0.0003863,6]
[327612874,1716252661816,-500.0,0.0003863,6]
[327612875,1716252661826,-500.0,0.0003863,6]
[327612876,1716252661836,-556.69,0.0003863,6]
[327612877,1716252661845,-2150.72,0.0003863,6]
[327612878,1716252661855,-151.0,0.0003863,14]
[327612879,1716252661864,-151.0,0.0003863,14]
[327612880,1716252661874,-151.0,0.0003863,14]
[327612881,1716252661884,-500.0,0.0003863,6]
[327612882,1716252661893,-1029.24,0.0003863,6]
[327612883,1716252661903,-2065.57,0.0003863,6]
[327612884,1716252661914,-3118.19,0.0003863,6]
[327612885,1716252661923,-500.0,0.0003863,6]
[327612886,1716252661932,-1140.35,0.0003863,6]
[327612887,1716252661941,-500.0,0.0003863,6]
[327612888,1716252661950,-537.44,0.0003863,6]
[327612889,1716252661959,-1466.98,0.0003863,6]
[327612890,1716252661969,-964.27,0.0003863,6]
[327612891,1716252661978,-7732.89,0.0003863,6]
[327612892,1716252661987,-2199.13,0.0003863,6]
[327612893,1716252661998,-2359.79,0.0003863,6]
[327612894,1716252662007,-500.0,0.0003863,6]
[327612895,1716252662017,-928.16,0.0003863,6]
[327612896,1716252662026,-3254.02,0.0003863,6]
[327612897,1716252662036,-842.17,0.0003863,6]
[327612898,1716252662046,-801.81,0.0003863,6]
[327612899,1716252662057,-2293.93,0.0003863,6]
[327612900,1716252662067,-2439.44,0.0003863,6]
[327612901,1716252662090,-2146.64,0.0003863,6]
[327612902,1716252662100,-1529.95,0.0003863,6]
[327612903,1716252662111,-6868.85,0.0003863,6]
[327612904,1716252662120,-2351.85,0.0003863,6]
[327612905,1716252662130,-1240.29,0.0003863,6]
[327612906,1716252662139,-799.42,0.0003863,6]
[327612907,1716252662148,-777.22,0.0003863,6]
[327612908,1716252662160,-500.0,0.0003863,6]
[327612909,1716252662170,-2206.25,0.0003863,6]
[327612910,1716252662179,-1444.41,0.0003863,6]
[327612911,1716252662188,-500.0,0.0003863,6]
[327612912,1716252662198,-628.59,0.0003863,6]
[327612913,1716252662208,-3501.83,0.0003863,6]
[327612914,1716252662220,-1687.81,0.0003863,6]
[327612915,1716252662230,-1223.26,0.0003863,6]
[327612916,1716252662241,-500.0,0.0003863,6]
[327612917,1716252662253,-500.0,0.0003863,6]
[327612918,1716252662263,-733.43,0.0003863,6]
[327612919,1716252662273,-4544.0,0.0003863,6]
[327612920,1716252662282,-500.0,0.0003863,6]
[327612921,1716252662291,-3118.6,0.0003863,6]
[327612922,1716252662303,-1098.51,0.0003863,6]
[327612923,1716252662315,-151.0,0.0003863,14]
[327612924,1716252662324,-151.0,0.0003863,14]
[327612925,1716252662335,-2995.64,0.0003863,6]
[327612926,1716252662346,-519.83,0.0003863,6]
[327612927,1716252662356,-987.19,0.0003863,6]
[327612928,1716252662366,-500.0,0.0003863,6]
[327612929,1716252662376,-500.0,0.0003863,6]
[327612930,1716252662387,-4038.9,0.0003863,6]
[327612931,1716252662397,-2236.69,0.0003863,6]
[327612932,1716252662407,-2606.35,0.0003863,6]
[327612933,1716252662417,-500.0,0.0003863,6]
[327612934,1716252662427,-500.0,0.0003863,6]
[327612935,1716252662436,-1362.0,0.0003863,6]
[327612936,1716252662445,-4358.05,0.0003863,6]
[327612937,1716252662455,-1588.52,0.0003863,6]
[327612938,1716252662464,-807.16,0.0003863,6]
[327612939,1716252662475,-500.0,0.0003863,6]
[327612940,1716252662484,-778.75,0.0003863,6]
[327612941,1716252662493,-500.0,0.0003863,6]
[327612942,1716252662503,-536.48,0.0003863,6]
[327612943,1716252662512,-2731.56,0.0003863,6]
[327612944,1716252662522,-500.0,0.0003863,6]
[327612945,1716252662531,-6717.54,0.0003863,6]
[327612946,1716252662540,-3640.01,0.0003863,6]
[327612947,1716252662550,-10905.46,0.0003863,6]
[327612948,1716252662560,-500.0,0.0003863,6]
[327612949,1716252662569,-500.0,0.0003863,6]
[327612950,1716252662579,-605.33,0.0003863,6]
[327612951,1716252662590,-1044.34,0.0003863,6]
[327612952,1716252662599,-551.75,0.0003863,6]
[327612953,1716252662609,-3780.64,0.0003863,6]
[327612954,1716252662620,-1000.0,0.00038641,4]
[327612955,1716252662630,-176.152983,0.000387,9]
[327612956,1716252662640,-151.61,0.00038721,2]
[327612957,1716252662650,-157.052108,0.00038748,44]
[327612958,1716252662662,-258.0,0.000389,7]
[327612959,1716252662672,-150.0,0.00038903,2]
[327612960,1716252662681,-669.2,0.00038904,6]
[327612961,1716252662690,-500.0,0.00038904,6]
[327612962,1716252662700,-500.0,0.00038904,6]
[327612963,1716252662710,-975.26,0.00038904,6]
[327612964,1716252662720,-1115.3,0.00038904,6]
[327612965,1716252662730,-508.18,0.00038904,6]
[327612966,1716252662739,-617.02,0.00038904,6]
[327612967,1716252662749,-500.0,0.00038904,6]
[327612968,1716252662758,-500.0,0.00038904,6]
[327612969,1716252662768,-500.0,0.00038904,6]
[327612970,1716252662777,-597.74,0.00038904,6]
[327612971,1716252662787,-500.0,0.00038904,6]
[327612972,1716252662797,-877.96,0.00038904,6]
[327612973,1716252662807,-500.0,0.00038904,6]
[327612974,1716252662817,-573.27,0.00038904,6]
[327612975,1716252662827,-500.0,0.00038904,6]
[327612976,1716252662837,-500.0,0.00038904,6]
[327612977,1716252662846,-500.0,0.00038904,6]
[327612978,1716252662857,-500.0,0.00038904,6]
[327612979,1716252662866,-500.0,0.00038904,6]
[327612980,1716252662876,-500.0,0.00038904,6]
[327612981,1716252662885,-500.0,0.00038904,6]
[327612982,1716252662895,-500.0,0.00038904,6]
[327612983,1716252662904,-500.0,0.00038904,6]
[327612984,1716252662915,-500.0,0.00038904,6]
[327612985,1716252662925,-500.0,0.00038904,6]
[327612986,1716252662935,-727.14,0.00038904,6]
[327612987,1716252662944,-500.0,0.00038904,6]
[327612988,1716252662954,-500.0,0.00038904,6]
[327612989,1716252662963,-500.0,0.00038904,6]
[327612990,1716252662973,-804.0,0.00038904,6]
[327612991,1716252662983,-500.0,0.00038904,6]
[327612992,1716252662993,-1089.85,0.00038904,6]
[327612993,1716252663002,-905.47,0.00038904,6]
[327612994,1716252663011,-518.76,0.00038904,6]
[327612995,1716252663020,-500.0,0.00038904,6]
[327612996,1716252663031,-500.0,0.00038904,6]
[327612997,1716252663041,-500.0,0.00038904,6]
[327612998,1716252663050,-500.0,0.00038904,6]
[327612999,1716252663060,-500.0,0.00038904,6]
[327613000,1716252663070,-1042.83,0.00038904,6]
[327613001,1716252663080,-500.0,0.00038904,6]
[327613002,1716252663091,-966.14,0.00038904,6]
[327613003,1716252663100,-1055.94,0.00038904,6]
[327613004,1716252663111,-500.0,0.00038904,6]
[327613005,1716252663121,-739.64,0.00038904,6]
[327613006,1716252663131,-618.53,0.00038904,6]
[327613007,1716252663141,-500.0,0.00038904,6]
[327613008,1716252663150,-696.27,0.00038904,6]
[327613009,1716252663163,-500.0,0.00038904,6]
[327613010,1716252663173,-597.97,0.00038904,6]
[327613011,1716252663183,-500.0,0.00038904,6]
[327613012,1716252663192,-500.0,0.00038904,6]
[327613013,1716252663202,-500.0,0.00038904,6]
[327613014,1716252663212,-500.0,0.00038904,6]
[327613015,1716252663222,-794.6,0.00038904,6]
[327613016,1716252663233,-709.0,0.00038904,6]
[327613017,1716252663243,-651.03,0.00038904,6]
[327613018,1716252663255,-500.0,0.00038904,6]
[327613019,1716252663264,-900.56,0.00038904,6]
[327613020,1716252663274,-500.0,0.00038904,6]
[327613021,1716252663283,-520.56,0.00038904,6]
[327613022,1716252663294,-500.0,0.00038904,6]
[327613023,1716252663306,-500.0,0.00038904,6]
[327613024,1716252663321,-259.29525883,0.00038904,6]
[327613025,1716252663331,-500.0,0.00038904,6]
[327613026,1716252663341,-500.0,0.00038904,6]
[327613027,1716252663351,-1011.46,0.00038904,6]
[327613028,1716252663368,-500.0,0.00038904,6]
[327613029,1716252663381,-1329.44,0.00038904,6]
[327613030,1716252663396,-500.0,0.00038904,6]
[327613031,1716252663417,-500.0,0.00038904,6]
[327613032,1716252663428,-700.33,0.00038904,6]
[327613033,1716252663437,-1100.06,0.00038904,6]
[327613034,1716252663447,-1030.12,0.00038904,6]
[327613035,1716252663457,-1270.41,0.00038904,6]
[327613036,1716252663468,-500.0,0.00038904,6]
[327613037,1716252663479,-500.0,0.00038904,6]
[327613038,1716252663491,-500.0,0.00038904,6]
[327613039,1716252663501,-1205.75,0.00038904,6]
[327613040,1716252663510,-500.0,0.00038904,6]
[327613041,1716252663521,-803.05,0.00038904,6]
[327613042,1716252663531,-500.0,0.00038904,6]
[327613043,1716252663540,-500.0,0.00038904,6]
[327613044,1716252663550,-754.43,0.00038904,6]
[327613045,1716252663559,-500.0,0.00038904,6]
[327613046,1716252663570,-282.90304964,0.00038904,6]
[327613047,1716252663580,-500.0,0.00038904,6]
[327613048,1716252663589,-500.0,0.00038904,6]
[327613049,1716252663599,-500.0,0.00038904,6]
[327613050,1716252663610,-202.7829884,0.00038904,6]
[327613051,1716252663620,-688.69,0.00038904,6]
[327613052,1716252663630,-500.0,0.00038904,6]
[327613053,1716252663640,-514.26519178,0.00038904,6]
[327613054,1716252663649,-500.0,0.00038904,6]
[327613055,1716252663660,-500.0,0.00038904,6]
[327613056,1716252663852,-533.48,0.00038904,6]
[327613057,1716252663879,-977.91,0.00038904,6]
[327613058,1716252663889,-957.37,0.00038904,6]
[327613059,1716252663899,-1020.45,0.00038904,6]
[327613060,1716252663909,-552.48,0.00038904,6]
[327613061,1716252663919,-589.61,0.00038904,6]
[327613062,1716252663928,-500.0,0.00038904,6]
[327613063,1716252663938,-662.69,0.00038904,6]
[327613064,1716252663948,-283.40137374,0.00038904,6]
[327613065,1716252663958,-688.61,0.00038904,6]
[327613066,1716252663968,-500.0,0.00038904,6]
[327613067,1716252663979,-500.0,0.00038904,6]
[327613068,1716252663989,-500.0,0.00038904,6]
[327613069,1716252664000,-1021.88,0.00038904,6]
[327613070,1716252664010,-551.9,0.00038904,6]
[327613071,1716252664020,-956.36,0.00038904,6]
[327613072,1716252664030,-622.61,0.00038904,6]
[327613073,1716252664040,-761.73,0.00038904,6]
[327613074,1716252664050,-500.0,0.00038904,6]
[327613075,1716252664059,-500.0,0.00038904,6]
[327613076,1716252664069,-500.0,0.00038904,6]
[327613077,1716252664079,-500.0,0.00038904,6]
[327613078,1716252664089,-670.36,0.00038904,6]
[327613079,1716252664099,-1116.96,0.00038904,6]
[327613080,1716252664108,-500.0,0.00038904,6]
[327613081,1716252664118,-905.96,0.00038904,6]
[327613082,1716252664127,-500.0,0.00038904,6]
[327613083,1716252664137,-500.0,0.00038904,6]
[327613084,1716252664147,-500.0,0.00038904,6]
[327613085,1716252664158,-738.7,0.00038904,6]
[327613086,1716252664167,-775.53,0.00038904,6]
[327613087,1716252664177,-500.0,0.00038904,6]
[327613088,1716252664186,-795.29,0.00038904,6]
[327613089,1716252664196,-500.0,0.00038904,6]
[327613090,1716252664206,-500.0,0.00038904,6]
[327613091,1716252664216,-1666.17,0.00038904,6]
[327613092,1716252664226,-500.0,0.00038904,6]
[327613093,1716252664238,-1229.0,0.00038904,6]
[327613094,1716252664247,-582.58,0.00038904,6]
[327613095,1716252664258,-500.0,0.00038904,6]
[327613096,1716252664268,-849.36,0.00038904,6]
[327613097,1716252664279,-500.0,0.00038904,6]
[327613098,1716252664289,-500.0,0.00038904,6]
[327613099,1716252664300,-500.0,0.00038904,6]
[327613100,1716252664313,-638.05,0.00038904,6]
[327613101,1716252664323,-500.0,0.00038904,6]
[327613102,1716252664332,-553.39,0.00038904,6]
[327613103,1716252664343,-500.0,0.00038904,6]
[327613104,1716252664352,-1630.15,0.00038904,6]
[327613105,1716252664361,-500.0,0.00038904,6]
[327613106,1716252664370,-1103.03,0.00038904,6]
[327613107,1716252664379,-1050.08,0.00038904,6]
[327613108,1716252664391,-757.53,0.00038904,6]
[327613109,1716252664402,-500.0,0.00038904,6]
[327613110,1716252664413,-500.0,0.00038904,6]
[327613111,1716252664423,-1924.9,0.00038904,6]
[327613112,1716252664433,-853.87,0.00038904,6]
[327613113,1716252664443,-500.0,0.00038904,6]
[327613114,1716252664452,-500.0,0.00038904,6]
[327613115,1716252664463,-829.49,0.00038904,6]
[327613116,1716252664472,-500.0,0.00038904,6]
[327613117,1716252664483,-500.0,0.00038904,6]
[327613118,1716252664494,-151.0,0.00038904,14]
[327613119,1716252664504,-500.0,0.00038904,6]
[327613120,1716252664515,-680.44,0.00038904,6]
[327613121,1716252664526,-500.0,0.00038904,6]
[327613122,1716252664538,-1167.69,0.00038904,6]
[327613123,1716252664549,-500.0,0.00038904,6]
[327613124,1716252664560,-500.0,0.00038904,6]
[327613125,1716252664570,-691.09,0.00038904,6]
[327613126,1716252664581,-500.0,0.00038904,6]
[327613127,1716252664593,-791.46,0.00038904,6]
[327613128,1716252664604,-1096.85,0.00038904,6]
[327613129,1716252664615,-1134.04,0.00038904,6]
[327613130,1716252664625,-500.0,0.00038904,6]
[327613131,1716252664635,-500.0,0.00038904,6]
[327613132,1716252664645,-500.0,0.00038904,6]
[327613133,1716252664656,-500.0,0.00038904,6]
[327613134,1716252664671,-1187.98,0.00038904,6]
[327613135,1716252664681,-525.22,0.00038904,6]
[327613136,1716252664691,-500.0,0.00038904,6]
[327613137,1716252664700,-500.0,0.00038904,6]
[327613138,1716252664710,-514.14,0.00038904,6]
[327613139,1716252664720,-528.29,0.00038904,6]
[327613140,1716252664730,-673.19,0.00038904,6]
[327613141,1716252664740,-500.0,0.00038904,6]
[327613142,1716252664750,-500.0,0.00038904,6]
[327613143,1716252664760,-517.83,0.00038904,6]
[327613144,1716252664769,-1310.01,0.00038904,6]
[327613145,1716252664779,-656.7,0.00038904,6]
[327613146,1716252664789,-500.0,0.00038904,6]
[327613147,1716252664799,-337.47003568,0.00038904,6]
[327613148,1716252664810,-500.0,0.00038904,6]
[327613149,1716252664820,-1090.24,0.00038904,6]
[327613150,1716252664829,-500.0,0.00038904,6]
[327613151,1716252664839,-810.2,0.00038904,6]
[327613152,1716252664849,-826.75,0.00038904,6]